bitfinex-derivatives/quotes_SOLF0:USTF0_20250227
["timestamp","ask_amount","ask_price","bid_price","bid_amount"]
[1740671181926,0.04572303,138.69,138.65,7.2176]
[1740671182125,0.04572303,138.69,138.64,0.05192721]
[1740671182724,7.26162303,138.69,138.64,0.05192721]
[1740671183119,0.04572303,138.69,138.64,0.05192721]
[1740671183425,0.04572303,138.69,138.64,7.27012721]
[1740671184419,7.26172303,138.69,138.64,0.05192721]
[1740671184623,0.04572303,138.69,138.64,0.05192721]
[1740671185120,0.04572303,138.69,138.64,7.26992721]
[1740671185325,0.04572303,138.69,138.64,0.05192721]
[1740671185527,0.04572303,138.69,138.65,7.2179]
[1740671185827,0.04572303,138.69,138.64,0.05192721]
[1740671186016,0.04572303,138.69,138.68,7.2164]
[1740671186525,0.00042303,138.69,138.68,28.8564]
[1740671186824,270.8217123,138.8,138.68,21.64]
[1740671187019,7.2093,138.82,138.68,195.0]
[1740671187220,4.1847,138.84,138.68,195.0]
[1740671188025,0.05501337,138.77,138.75,0.05181442]
[1740671188227,2.1178,138.84,138.68,195.0]
[1740671188530,0.0528612,138.77,138.75,0.04993687]
[1740671188828,2.1673,138.86,138.68,195.0]
[1740671189024,196.16,138.88,138.75,0.04786708]
[1740671189225,196.16,138.88,138.75,195.0]
[1740671189425,203.3662,138.88,138.79,7.2103]
[1740671189620,196.16,138.88,138.75,195.0]
[1740671189822,2.1178,138.9,138.75,195.0]
[1740671190132,12.3,138.94,138.75,195.0]
[1740671190328,0.05033265,138.84,138.81,0.0511792]
[1740671190520,0.05033265,138.84,138.75,195.0]
[1740671190836,0.05509171,138.84,138.81,0.04730031]
[1740671191129,12.3,138.94,138.81,0.0505517]
[1740671191330,0.05119186,138.84,138.81,0.0505517]
[1740671191627,301.95483736,139.03,138.81,195.0]
[1740671191828,12.3,139.0,138.81,195.0]
[1740671192632,0.0500651,138.9,138.88,0.04986837]
[1740671193126,0.05338275,138.9,138.88,0.04777035]
[1740671194428,0.05338275,138.9,138.88,21.64777035]
[1740671194735,0.05338275,138.9,138.88,0.04777035]
[1740671196534,7.2055,138.89,138.88,0.04777035]
[1740671197134,0.05338275,138.9,138.88,0.04777035]
[1740671197630,7.2055,138.89,138.88,0.04777035]
[1740671198838,0.05338275,138.9,138.88,0.04777035]
[1740671199537,0.05338275,138.9,138.72,235.16310237]
[1740671199737,0.05338275,138.9,138.72,234.16310237]
[1740671199938,1.32419952,138.89,138.72,234.16310237]
[1740671200137,4.2373,138.88,138.72,234.16310237]
[1740671200339,7.2095,138.82,138.74,7.213]
[1740671200530,12.3,138.86,138.72,195.8196001]
[1740671200731,0.05438441,138.81,138.79,0.05529154]
[1740671201633,0.05438441,138.81,138.79,7.26589154]
[1740671201839,0.05438441,138.81,138.79,0.05529154]
[1740671202238,0.05438441,138.81,138.79,21.67529154]
[1740671202838,0.05438441,138.81,138.8,7.2102]
[1740671203339,0.05438441,138.81,138.8,28.8302]
[1740671204140,0.05438441,138.81,138.8,21.62]
[1740671204333,0.05438441,138.81,138.79,0.05529154]
[1740671204929,0.05438441,138.81,138.8,7.2102]
[1740671205135,0.05438441,138.81,138.79,0.05529154]
[1740671205341,0.05438441,138.81,138.79,7.26579154]
[1740671205541,0.05438441,138.81,138.79,0.05529154]
[1740671206142,0.05438441,138.81,138.8,7.2102]
[1740671207542,0.05438441,138.81,138.79,16.76976254]
[1740671207842,12.28,138.88,138.79,9.55946254]
[1740671208040,12.28,138.88,138.79,9.504171]
[1740671208238,1.32431071,138.87,138.79,9.504171]
[1740671208531,12.28,138.88,138.79,9.504171]
[1740671208732,12.28,138.88,138.82,0.04986897]
[1740671209038,0.04753929,138.85,138.79,3.329971]
[1740671209345,7.21,138.81,138.78,105.74421466]
[1740671209541,7.21,138.81,138.8,5.59971859]
[1740671209837,12.28,138.83,138.79,11.20133127]
[1740671210138,12.28,138.83,138.79,11.25419478]
[1740671210139,1.37998023,138.82,138.79,11.25419478]
[1740671210342,7.2102,138.8,138.79,11.25419478]
[1740671210739,7.2107,138.79,138.78,76.41432404]
[1740671211140,28.8307,138.79,138.78,76.41432404]
[1740671211344,28.8307,138.79,138.73,7.2136]
[1740671211345,7.2116,138.78,138.73,7.2136]
[1740671211847,0.05466073,138.77,138.74,0.05236928]
[1740671212642,6.073e-05,138.77,138.74,0.05236928]
[1740671212947,187.59712775,138.82,138.74,0.05236928]
[1740671213647,194.80672775,138.82,138.74,0.05236928]
[1740671214045,0.05559323,138.79,138.74,0.05236928]
[1740671214649,0.05559323,138.79,138.78,7.2112]
[1740671215245,0.05559323,138.79,138.77,7.25869313]
[1740671215452,0.05559323,138.79,138.77,0.04709313]
[1740671215749,0.05559323,138.79,138.77,7.25869313]
[1740671215941,0.05559323,138.79,138.77,0.04709313]
[1740671217248,0.05559323,138.79,138.78,7.2112]
[1740671217448,0.05559323,138.79,138.77,0.04709313]
[1740671218859,0.05559323,138.79,138.78,7.2112]
[1740671219653,0.05559323,138.79,138.77,7.25859313]
[1740671219954,0.05559323,138.79,138.77,0.04709313]
[1740671222351,0.05559323,138.79,138.78,7.2112]
[1740671222552,0.05559323,138.79,138.77,0.04709313]
[1740671222954,192.0,138.88,138.77,0.04709313]
[1740671223156,195.98,138.9,138.71,209.1957]
[1740671223353,208.28,138.9,138.71,209.1957]
[1740671223550,195.98,138.9,138.71,209.1957]
[1740671223754,208.28,138.9,138.71,209.1957]
[1740671224053,208.28,138.9,138.83,7.2083]
[1740671224054,7.2058,138.89,138.83,7.2083]
[1740671224249,208.28,138.9,138.79,0.04573779]
[1740671224455,0.05042356,138.87,138.75,195.0]
[1740671224656,208.28,138.9,138.83,4.914e-05]
[1740671224657,7.2081,138.84,138.83,4.914e-05]
[1740671224857,0.05389754,138.82,138.71,1.8957]
[1740671225156,12.3,138.83,138.71,1.8957]
[1740671225858,0.04685684,138.78,138.76,0.05099593]
[1740671226456,12.3,138.83,138.76,0.05099593]
[1740671226859,19.5089,138.83,138.76,0.05099593]
[1740671227059,12.3,138.83,138.76,0.05099593]
[1740671227353,74.49166889,138.94,138.76,195.05099593]
[1740671227555,195.96,138.98,138.77,1.9106]
[1740671227748,9.21e-06,138.86,138.77,196.9106]
[1740671227949,208.24,138.98,138.84,0.0528166]
[1740671228153,195.96,138.98,138.84,195.0]
[1740671228353,388.90293321,139.06,138.85,1.9106]
[1740671228555,388.90293321,139.06,138.85,196.9106]
[1740671228749,109.58451466,139.03,138.85,1.9106]
[1740671228956,0.04822338,138.96,138.93,0.04562218]
[1740671230054,0.04822338,138.96,138.93,7.24862218]
[1740671230362,0.04822338,138.96,138.93,0.04562218]
[1740671230756,0.04822338,138.96,138.93,7.24892218]
[1740671230962,0.04822338,138.96,138.93,0.04562218]
[1740671231353,0.04822338,138.96,138.93,7.24872218]
[1740671231661,0.04822338,138.96,138.93,0.04562218]
[1740671231963,0.04822338,138.96,138.94,7.2025]
[1740671232157,0.04822338,138.96,138.93,0.04562218]
[1740671232462,109.58451466,139.03,138.93,21.64562218]
[1740671232758,109.58451466,139.03,138.94,1.8689]
[1740671232958,14.3842,139.15,138.94,1.8689]
[1740671232959,195.96,139.06,138.95,1.8567]
[1740671233158,12.28,139.1,138.95,14.1367]
[1740671233361,12.28,139.12,138.95,14.1367]
[1740671233558,12.28,139.12,139.01,7.199]
[1740671233760,0.05292624,139.04,139.01,0.04695755]
[1740671234058,195.88,139.15,138.95,209.1367]
[1740671234261,195.88,139.15,138.95,210.57606667]
[1740671234459,7.194,139.12,139.04,7.1973]
[1740671234659,195.88,139.15,139.04,7.1973]
[1740671234858,195.88,139.15,138.95,210.57606667]
[1740671235060,0.04960779,139.11,139.08,0.04743322]
[1740671235455,1.32211717,139.14,138.95,210.57606667]
[1740671235658,0.04690584,139.11,139.08,0.04904161]
[1740671235862,1.32211717,139.13,138.95,210.57606667]
[1740671236062,0.05352092,139.11,139.08,0.04997448]
[1740671236260,0.0993,139.14,138.95,210.57606667]
[1740671236459,0.04966103,139.11,139.08,0.04647655]
[1740671236659,0.04966103,139.11,138.95,210.57606667]
[1740671236660,1.32220341,139.13,138.95,210.57606667]
[1740671236964,0.0533134,139.11,139.08,0.04988559]
[1740671237165,0.0993,139.14,138.95,210.57606667]
[1740671237362,7.1952,139.09,139.08,0.0535168]
[1740671237563,7.1952,139.09,138.95,210.57606667]
[1740671237759,0.04788242,139.1,138.95,210.57606667]
[1740671237962,0.04788242,139.1,139.07,0.04962595]
[1740671238160,1.3221045,139.14,138.95,210.57606667]
[1740671238359,0.04953811,139.1,139.07,0.05362869]
[1740671238556,195.88,139.15,138.95,210.57606667]
[1740671238761,0.05523863,139.1,139.07,0.05110234]
[1740671238961,0.05523863,139.1,138.95,210.57606667]
[1740671239161,195.88,139.15,138.95,210.57606667]
[1740671239162,7.1927,139.14,138.96,3.32846309]
[1740671239363,7.1927,139.14,139.01,0.04534791]
[1740671239562,195.88,139.15,139.02,12.28]
[1740671239766,203.0725,139.15,139.08,7.1955]
[1740671240267,195.88,139.15,139.03,5.7455]
[1740671240766,0.03805062,139.1,139.08,0.0540631]
[1740671240963,195.88,139.15,139.08,0.0540631]
[1740671241162,0.03805062,139.13,139.08,0.0540631]
[1740671241568,1.32163743,139.2,139.08,0.0540631]
[1740671241765,195.68,139.23,139.09,12.26]
[1740671241959,195.68,139.23,139.1,1.871]
[1740671242163,7.1886,139.22,139.1,1.871]
[1740671242364,195.68,139.23,139.11,2.0152]
[1740671242665,12.26,139.28,139.19,7.19]
[1740671243067,207.86,139.31,139.19,7.19]
[1740671243269,1.32049059,139.3,139.17,1.871]
[1740671243469,207.86,139.31,139.22,0.05521276]
[1740671243664,1.32039661,139.3,139.22,0.05521276]
[1740671243860,1.32039661,139.3,139.17,1.871]
[1740671244372,7.1867,139.26,139.19,7.1898]
[1740671244565,207.86,139.31,139.22,0.05078566]
[1740671244765,7.1873,139.25,139.22,0.05078566]
[1740671244966,0.0823,139.3,139.17,9.0617]
[1740671245166,1.32052674,139.29,139.22,0.05512976]
[1740671245376,1.32052674,139.28,139.11,197.0152]
[1740671245566,1.37465559,139.27,139.14,7.1922]
[1740671245763,1.41852674,139.26,139.12,4.0367]
[1740671246066,7.1886,139.22,139.12,4.0367]
[1740671246274,0.098,139.26,139.12,4.0367]
[1740671246468,1.32082272,139.25,139.12,4.0367]
[1740671246674,0.0521298,139.2,139.18,0.0525487]
[1740671247068,12.26,139.24,139.18,0.0525487]
[1740671247273,0.05070129,139.2,139.18,0.0525487]
[1740671247472,7.24060129,139.2,139.18,0.0525487]
[1740671247672,0.05070129,139.2,139.18,0.0525487]
[1740671248769,7.19,139.19,139.18,0.0525487]
[1740671250879,2.83241509,139.39,139.18,33.8725487]
[1740671251175,1.41454718,139.38,139.19,1.9847]
[1740671251475,8.50064718,139.37,139.26,7.1859]
[1740671251670,1.31994718,139.36,139.2,2.0019]
[1740671251875,1.31994718,139.35,139.2,2.0019]
[1740671252075,1.31994718,139.34,139.27,0.0537543]
[1740671252375,1.31994999,139.33,139.2,2.0019]
[1740671252575,0.0946,139.38,139.29,0.05168335]
[1740671252771,1.31996673,139.37,139.32,0.05507778]
[1740671253072,2.83017245,139.5,139.27,12.26]
[1740671253371,1.41374467,139.47,139.28,1.9847]
[1740671253574,1.31914467,139.46,139.36,0.04684774]
[1740671253775,1.31914467,139.45,139.36,0.04684774]
[1740671254074,1.31914467,139.44,139.39,0.0490596]
[1740671254271,1.31914467,139.43,139.39,0.0490596]
[1740671254476,0.0946,139.47,139.36,7.1811]
[1740671254666,1.31896765,139.46,139.4,0.05323881]
[1740671254866,1.31896765,139.45,139.29,2.0019]
[1740671255071,1.31896765,139.44,139.36,0.04671883]
[1740671255267,1.31896765,139.43,139.36,0.04671883]
[1740671255473,0.0946,139.47,139.38,0.0542688]
[1740671255672,1.31897271,139.46,139.38,0.0542688]
[1740671255877,1.31897271,139.45,139.29,2.0019]
[1740671256076,1.31897271,139.44,139.41,0.04639056]
[1740671256277,1.31897271,139.43,139.38,7.1802]
[1740671256480,1.31897271,139.43,139.3,1.8959]
[1740671256481,0.0946,139.47,139.36,0.05102909]
[1740671256680,1.31891044,139.46,139.3,1.8959]
[1740671256880,1.31891044,139.45,139.4,0.04589505]
[1740671257082,1.31891044,139.44,139.35,7.1812]
[1740671257282,1.31891044,139.43,139.3,1.8959]
[1740671257482,12.3346,139.47,139.3,1.8959]
[1740671257483,12.24,139.47,139.41,0.05437774]
[1740671257681,1.3188903,139.46,139.37,7.1803]
[1740671257883,1.3188903,139.45,139.35,0.04568059]
[1740671258081,12.24,139.49,139.3,1.8959]
[1740671258388,1.31875384,139.47,139.41,7.1785]
[1740671258588,1.31875384,139.46,139.39,0.04981002]
[1740671258786,1.31875384,139.45,139.3,1.8959]
[1740671258987,12.24,139.49,139.41,0.05256589]
[1740671259287,1.31879239,139.47,139.3,1.8959]
[1740671259484,1.31879239,139.46,139.43,0.04703414]
[1740671259783,12.3307,139.53,139.35,12.24]
[1740671259984,1.31844144,139.52,139.44,7.1769]
[1740671260184,1.31844144,139.51,139.36,2.0163]
[1740671260378,1.31844144,139.5,139.47,0.054804]
[1740671260579,12.3307,139.53,139.44,7.1771]
[1740671260784,1.31827944,139.52,139.47,0.05341567]
[1740671260986,1.31827944,139.51,139.47,0.05341567]
[1740671261285,1.31827944,139.5,139.47,0.05341567]
[1740671261478,1.31827944,139.49,139.47,0.05341567]
[1740671261681,1.31827944,139.48,139.38,7.18]
[1740671261879,1.31827944,139.47,139.36,2.0163]
[1740671262089,13.55827944,139.46,139.36,2.0163]
[1740671262292,1.31827944,139.45,139.31,1.43564711]
[1740671262491,1.31827944,139.44,139.32,2.0163]
[1740671262688,1.31887691,139.43,139.32,2.0163]
[1740671262899,0.04862233,139.39,139.37,0.05415018]
[1740671263288,1.31890807,139.44,139.34,7.1821]
[1740671263482,0.05283411,139.39,139.37,0.05117187]
[1740671263883,0.05283411,139.39,139.32,2.0163]
[1740671263884,1.31891817,139.45,139.32,2.0163]
[1740671264082,0.04707699,139.39,139.37,0.05133236]
[1740671264492,12.24,139.46,139.32,2.0163]
[1740671264687,1.31886027,139.45,139.32,2.0163]
[1740671264892,7.1779,139.43,139.33,7.1827]
[1740671265191,1.31886027,139.42,139.32,2.0163]
[1740671265392,7.1785,139.42,139.32,2.0163]
[1740671265695,195.2,139.45,139.36,0.04768723]
[1740671265885,1.31904785,139.44,139.36,0.04768723]
[1740671266084,1.31904785,139.43,139.32,2.0163]
[1740671266284,1.31904785,139.42,139.39,0.04623804]
[1740671266493,1.31904785,139.41,139.3,1.8959]
[1740671266688,1.31904785,139.4,139.39,0.05231211]
[1740671266887,1.31904785,139.4,139.3,3.902]
[1740671267088,195.2,139.45,139.3,3.902]
[1740671267290,1.31914202,139.44,139.3,3.902]
[1740671267593,7.1787,139.41,139.32,7.1829]
[1740671267796,1.31914202,139.43,139.3,3.902]
[1740671267797,1.31913104,139.4,139.3,3.902]
[1740671268092,0.04496464,139.38,139.35,0.04890932]
[1740671268292,19.4199,139.39,139.3,1.8959]
[1740671268486,0.04496464,139.38,139.35,0.05105221]
[1740671269287,7.1812,139.36,139.35,0.05105221]
[1740671269488,1.31955823,139.36,139.35,0.05105221]
[1740671270289,8.50075823,139.36,139.35,0.05105221]
[1740671270492,1.31955823,139.36,139.35,0.05105221]
[1740671270692,0.04496464,139.38,139.35,0.05105221]
[1740671272998,7.1812,139.36,139.35,0.05105221]
[1740671273297,8.50060186,139.36,139.35,0.05105221]
[1740671273899,0.04496464,139.38,139.35,0.05105221]
[1740671277898,7.1812,139.36,139.35,0.05105221]
[1740671278198,0.04496464,139.38,139.35,0.05105221]
[1740671278397,7.1812,139.36,139.35,0.05105221]
[1740671278999,0.04496464,139.38,139.35,0.05105221]
[1740671279700,7.1807,139.37,139.35,0.05105221]
[1740671279903,0.04496464,139.38,139.35,0.05105221]
[1740671280105,7.1812,139.36,139.35,0.05105221]
[1740671280306,0.04496464,139.38,139.35,0.05105221]
[1740671281707,7.1812,139.36,139.35,0.05105221]
[1740671282402,0.04496464,139.38,139.35,0.05105221]
[1740671282603,7.1812,139.36,139.35,0.05105221]
[1740671283297,33.76,139.36,139.26,26.53454]
[1740671283509,1.31965265,139.35,139.26,24.56784]
[1740671283697,196.51965265,139.34,139.26,24.56784]
[1740671283900,1.31965265,139.33,139.26,24.56784]
[1740671284101,1.31965265,139.32,139.26,24.56784]
[1740671284306,2.82879112,139.41,139.26,24.56784]
[1740671284307,12.24,139.4,139.27,14.43608908]
[1740671284508,3.741e-05,139.3,139.28,2.02196532]
[1740671284703,1.31978536,139.38,139.28,1.9693]
[1740671284907,1.31978536,139.37,139.28,1.9693]
[1740671285209,1.31978536,139.36,139.27,14.43608908]
[1740671285406,1.31978536,139.35,139.27,14.43608908]
[1740671285601,7.1831,139.33,139.27,14.43608908]
[1740671285810,0.04341685,139.32,139.3,0.05141626]
[1740671286108,1.31977771,139.38,139.27,14.43608908]
[1740671286310,0.04341685,139.32,139.3,0.04788796]
[1740671286704,12.28341685,139.32,139.3,0.04990277]
[1740671287009,12.28341685,139.32,139.27,14.43608908]
[1740671287208,7.1839,139.31,139.28,7.1853]
[1740671287508,12.28341685,139.32,139.26,24.56784]
[1740671287699,0.04341685,139.32,139.26,24.56784]
[1740671288008,0.04341685,139.32,139.3,7.184]
[1740671288305,0.04341685,139.32,139.28,0.05424944]
[1740671289107,7.22701685,139.32,139.28,0.05424944]
[1740671289309,0.04341685,139.32,139.28,0.05424944]
[1740671289511,7.1814,139.36,139.31,7.1835]
[1740671289811,74.22523165,139.44,139.27,1.9469]
[1740671290012,1.31929791,139.42,139.27,1.9469]
[1740671290312,7.1794,139.4,139.27,1.9469]
[1740671290507,86.46523165,139.44,139.27,1.9469]
[1740671290707,0.04559575,139.35,139.32,0.04524775]
[1740671290907,86.46523165,139.44,139.27,1.9469]
[1740671291211,1.31925537,139.42,139.27,1.9469]
[1740671291417,1.31925537,139.41,139.27,1.9469]
[1740671291609,1.31925537,139.4,139.27,1.9469]
[1740671291813,7.1818,139.35,139.28,7.185]
[1740671292013,12.24,139.37,139.32,0.04828438]
[1740671292408,12.24,139.37,139.26,24.56784]
[1740671292714,12.24,139.37,139.31,0.05206601]
[1740671292915,7.1833,139.32,139.31,0.05206601]
[1740671294008,7.1843,139.3,139.29,37.62765217]
[1740671294207,19.4243,139.3,139.29,37.62765217]
[1740671294812,12.24,139.3,139.29,37.62765217]
[1740671296818,19.4243,139.3,139.28,0.0539118]
[1740671297018,12.24,139.3,139.28,0.0539118]
[1740671297318,12.24,139.3,139.28,7.2391118]
[1740671297516,12.24,139.3,139.28,0.0539118]
[1740671298116,0.04785363,139.31,139.28,0.0539118]
[1740671298416,195.26,139.32,139.28,0.0539118]
[1740671298617,192.0,139.35,139.28,0.0539118]
[1740671298819,12.24,139.37,139.28,0.0539118]
[1740671299020,7.1821,139.35,139.27,1.8888]
[1740671299514,7.1821,139.35,139.3,0.04602751]
[1740671299720,12.24,139.37,139.3,0.04602751]
[1740671300117,7.1815,139.36,139.31,7.1836]
[1740671300417,12.24,139.37,139.31,7.1836]
[1740671301015,12.24,139.37,139.3,0.04602751]
[1740671302317,7.1821,139.35,139.3,7.23032751]
[1740671302517,12.24,139.37,139.3,0.04602751]
[1740671302925,7.181,139.37,139.32,7.1829]
[1740671303420,195.26,139.4,139.33,0.05108887]
[1740671303617,7.1804,139.38,139.33,7.23348887]
[1740671303818,7.1804,139.38,139.33,0.05108887]
[1740671304023,7.1799,139.39,139.34,7.182]
[1740671304318,195.26,139.4,139.33,0.05108887]
[1740671304527,74.22277602,139.43,139.33,0.05108887]
[1740671304722,7.1784,139.42,139.37,7.1803]
[1740671304919,74.22277602,139.43,139.37,7.22942484]
[1740671305119,7.1794,139.4,139.37,0.04912484]
[1740671305321,74.22277602,139.43,139.37,0.04912484]
[1740671305822,7.1802,139.38,139.37,0.04912484]
[1740671306221,74.22277602,139.43,139.37,0.04912484]
[1740671306524,7.1802,139.38,139.37,0.04912484]
[1740671306925,7.1799,139.39,139.37,0.04912484]
[1740671307319,74.22277602,139.43,139.37,0.04912484]
[1740671307516,7.1789,139.41,139.37,7.22962484]
[1740671308026,74.22277602,139.43,139.37,0.04912484]
[1740671308222,12.24,139.46,139.39,7.1793]
[1740671308526,12.24,139.46,139.29,14.3696]
[1740671308726,7.1783,139.42,139.41,0.05372891]
[1740671308925,12.24,139.46,139.37,7.1803]
[1740671309125,12.24,139.46,139.29,14.3696]
[1740671309327,12.24,139.46,139.36,0.05225184]
[1740671309528,12.24,139.46,139.28,1.9261]
[1740671309828,12.24,139.46,139.35,7.1814]
[1740671310029,12.24,139.46,139.36,0.05351714]
[1740671310329,12.24,139.46,139.28,1.9261]
[1740671310729,7.1811,139.37,139.36,0.05366529]
[1740671311031,26.5927,139.46,139.28,1.9261]
[1740671311220,26.5927,139.46,139.35,0.05416796]
[1740671311427,26.5927,139.46,139.28,1.9261]
[1740671311629,0.1777,139.45,139.39,0.05224877]
[1740671311827,0.1777,139.45,139.35,7.1813]
[1740671312025,21.6977,139.45,139.41,9.024e-05]
[1740671312223,0.1777,139.45,139.28,1.9261]
[1740671312429,7.1805,139.38,139.28,1.9261]
[1740671312631,7.1805,139.38,139.29,5.21445717]
[1740671312829,7.1803,139.38,139.35,7.1814]
[1740671313029,0.1777,139.45,139.29,5.21445717]
[1740671313331,7.23249732,139.38,139.35,0.04728203]
[1740671313625,0.1777,139.45,139.29,5.21445717]
[1740671313830,0.05288082,139.38,139.35,0.04986348]
[1740671314028,0.1777,139.45,139.3,1.9212]
[1740671314227,0.05454559,139.35,139.32,0.04634357]
[1740671314534,0.1777,139.45,139.32,21.54]
[1740671314535,12.22,139.45,139.32,21.54]
[1740671314730,12.22,139.45,139.33,2.0332]
[1740671314938,7.1801,139.39,139.35,7.1815]
[1740671315233,12.22,139.45,139.35,7.1815]
[1740671315437,7.1805,139.38,139.35,7.1815]
[1740671315729,12.22,139.45,139.33,2.0332]
[1740671315934,12.22,139.45,139.35,0.05295449]
[1740671316124,12.22,139.45,139.33,2.0332]
[1740671316325,12.22,139.45,139.39,0.04673627]
[1740671316735,7.1791,139.4,139.39,0.04673627]
[1740671317135,14.3544,139.44,139.33,2.0332]
[1740671317630,12.22,139.45,139.33,2.0332]
[1740671317936,14.3553,139.43,139.3,1.9212]
[1740671318136,0.2325,139.42,139.3,1.9212]
[1740671318332,7.1812,139.36,139.35,0.04629157]
[1740671318738,12.26683433,139.38,139.35,0.04629157]
[1740671319537,0.04683433,139.38,139.35,0.04629157]
[1740671319831,0.04683433,139.38,139.36,7.1808]
[1740671320035,0.04683433,139.38,139.35,0.04629157]
[1740671320432,0.04683433,139.38,139.36,7.1812]
[1740671320827,0.04683433,139.38,139.35,0.04629157]
[1740671321034,7.181,139.37,139.35,0.04629157]
[1740671321430,195.18,139.42,139.35,0.04629157]
[1740671321728,12.22,139.48,139.35,0.04629157]
[1740671321927,12.22,139.48,139.3,1.9212]
[1740671322129,7.1769,139.45,139.41,7.1783]
[1740671322834,7.1769,139.45,139.42,0.05428102]
[1740671323036,12.22,139.47,139.42,0.05428102]
[1740671323235,7.1774,139.44,139.42,0.05428102]
[1740671323840,7.1758,139.47,139.42,0.05428102]
[1740671324033,12.22,139.48,139.42,0.05428102]
[1740671324433,7.1775,139.44,139.42,0.05428102]
[1740671324835,12.22,139.48,139.42,0.05428102]
[1740671325236,12.22,139.49,139.42,0.05428102]
[1740671326038,7.1765,139.46,139.42,0.05428102]
[1740671326237,195.4127,139.5,139.42,0.05428102]
[1740671326438,195.16,139.58,139.42,0.05428102]
[1740671326635,12.22,139.56,139.42,0.05428102]
[1740671326933,12.22,139.56,139.45,0.05090553]
[1740671327645,7.1748,139.49,139.45,0.05090553]
[1740671327840,12.22,139.56,139.45,0.05090553]
[1740671328143,7.1749,139.49,139.45,0.05090553]
[1740671328441,12.22,139.56,139.45,0.05090553]
[1740671329047,195.4399,139.58,139.45,0.05090553]
[1740671329235,7.1721,139.54,139.45,0.05090553]
[1740671329441,195.16,139.58,139.5,0.04840814]
[1740671329744,195.16,139.58,139.39,211.3252]
[1740671330135,195.16,139.58,139.47,0.04591397]
[1740671330333,195.16,139.58,139.39,211.3252]
[1740671330536,195.16,139.58,139.51,0.05040426]
[1740671330738,195.16,139.58,139.4,196.43472022]
[1740671330937,195.16,139.58,139.53,0.05021245]
[1740671331141,195.16,139.58,139.54,0.05441944]
[1740671331342,195.16,139.58,139.4,1.43472022]
[1740671332642,0.04952813,139.5,139.48,0.05257827]
[1740671332843,195.16,139.58,139.4,1.43472022]
[1740671333045,0.04958084,139.5,139.48,0.04700805]
[1740671333241,195.16,139.58,139.4,1.43472022]
[1740671333438,0.05517054,139.5,139.48,0.04625374]
[1740671333639,7.1721,139.54,139.47,7.1752]
[1740671333936,0.05164138,139.5,139.48,0.04754359]
[1740671334142,195.16,139.58,139.45,7.1764]
[1740671334340,0.04883697,139.5,139.48,0.04865614]
[1740671334536,0.05276023,139.5,139.45,7.1764]
[1740671334740,0.05276023,139.5,139.48,0.05338992]
[1740671335745,0.05276023,139.5,139.48,7.22828992]
[1740671336247,0.05276023,139.5,139.48,0.05338992]
[1740671336443,195.16,139.58,139.48,21.55338992]
[1740671336641,12.22,139.65,139.49,4.008]
[1740671336946,195.04,139.67,139.49,4.008]
[1740671337146,13.53747796,139.66,139.49,4.008]
[1740671337342,12.22,139.66,139.49,199.008]
[1740671337544,195.04,139.67,139.56,0.05276349]
[1740671337744,195.04,139.67,139.49,4.008]
[1740671337945,195.04,139.67,139.6,0.05068468]
[1740671338141,195.04,139.67,139.49,4.008]
[1740671338342,1.31731912,139.66,139.62,7.362e-05]
[1740671338649,7.1699,139.58,139.52,7.1728]
[1740671338851,12.22,139.6,139.49,4.008]
[1740671339356,0.2747,139.59,139.49,4.008]
[1740671339649,0.05369453,139.56,139.53,0.04949974]
[1740671340350,7.22459453,139.56,139.53,0.04949974]
[1740671340750,0.05369453,139.56,139.53,0.04949974]
[1740671341342,7.22499453,139.56,139.53,0.04949974]
[1740671341747,0.05369453,139.56,139.53,0.04949974]
[1740671342450,7.22479453,139.56,139.53,0.04949974]
[1740671342852,0.05369453,139.56,139.53,0.04949974]
[1740671344049,0.05369453,139.56,139.53,7.22169974]
[1740671344447,0.05369453,139.56,139.53,0.04949974]
[1740671344955,0.05369453,139.56,139.53,7.22179974]
[1740671345353,0.2702,139.66,139.53,0.04949974]
[1740671345550,7.1681,139.62,139.56,7.1708]
[1740671345752,12.22,139.65,139.5,2.0488]
[1740671346057,7.1686,139.61,139.54,7.1715]
[1740671346258,12.22,139.65,139.5,2.0488]